[Event "Titled Tuesday Blitz July 20 2021"]
[White "Gabrielian, Artur"]
[Black "Dzhaparov, Medet"]
[WhiteFideId "4131002"]
[BlackFideId "13803689"]
[WhiteElo "2523"]
[BlackElo "1702"]
[Result "0-1"]
[Round "10"]
[TimeControl "180+1"]
[Date "2021.07.21"]
[WhiteClock "0:01:00"]
[BlackClock "0:00:04"]

1. d4 {[%clk 0:03:00]}  Nf6 {[%clk 0:02:59]} 2. Bg5 {[%clk 0:02:59]}  c5 {[%clk 0:02:58]} 3. d5 {[%clk 0:02:59]}  d6 {[%clk 0:02:56]} 4. Nc3 {[%clk 0:02:58]}  Nbd7 {[%clk 0:02:55]} 5. e4 {[%clk 0:02:57]}  g6 {[%clk 0:02:54]} 6. Nf3 {[%clk 0:02:54]}  Bg7 {[%clk 0:02:54]} 7. Be2 {[%clk 0:02:54]}  O-O {[%clk 0:02:53]} 8. O-O {[%clk 0:02:54]}  a6 {[%clk 0:02:46]} 9. a4 {[%clk 0:02:53]}  Rb8 {[%clk 0:02:40]} 10. Nd2 {[%clk 0:02:46]}  Qc7 {[%clk 0:02:33]} 11. Re1 {[%clk 0:02:42]}  h6 {[%clk 0:02:08]} 12. Bh4 {[%clk 0:02:41]}  b6 {[%clk 0:01:54]} 13. f4 {[%clk 0:02:36]}  Bb7 {[%clk 0:01:49]} 14. Bc4 {[%clk 0:02:33]}  Rbe8 {[%clk 0:01:39]} 15. Qe2 {[%clk 0:02:31]}  e6 {[%clk 0:01:05]} 16. dxe6 {[%clk 0:02:26]}  fxe6 {[%clk 0:01:04]} 17. Bxa6 {[%clk 0:02:26]}  Bxa6 {[%clk 0:01:01]} 18. Qxa6 {[%clk 0:02:26]}  Nh5 {[%clk 0:00:57]} 19. g3 {[%clk 0:02:09]}  g5 {[%clk 0:00:37]} 20. fxg5 {[%clk 0:02:08]}  Ne5 {[%clk 0:00:31]} 21. Qe2 {[%clk 0:02:06]}  Qf7 {[%clk 0:00:26]} 22. Rf1 {[%clk 0:02:02]}  Qg6 {[%clk 0:00:25]} 23. gxh6 {[%clk 0:02:01]}  Bxh6 {[%clk 0:00:22]} 24. Rxf8+ {[%clk 0:02:00]}  Rxf8 {[%clk 0:00:21]} 25. Rf1 {[%clk 0:02:00]}  Bxd2 {[%clk 0:00:19]} 26. Qxd2 {[%clk 0:01:58]}  Nf3+ {[%clk 0:00:06]} 27. Rxf3 {[%clk 0:01:58]}  Rxf3 {[%clk 0:00:06]} 28. Qxd6 {[%clk 0:01:57]}  Nf4 {[%clk 0:00:05]} 29. Qd8+ {[%clk 0:01:49]}  Kh7 {[%clk 0:00:05]} 30. Qc7+ {[%clk 0:01:49]}  Kg8 {[%clk 0:00:04]} 31. Qd8+ {[%clk 0:01:40]}  Kh7 {[%clk 0:00:04]} 32. Qe7+ {[%clk 0:01:41]}  Kg8 {[%clk 0:00:05]} 33. Qd6 {[%clk 0:01:24]}  Qg4 {[%clk 0:00:03]} 34. Qd8+ {[%clk 0:01:18]}  Kf7 {[%clk 0:00:03]} 35. Qe7+ {[%clk 0:01:18]}  Kg8 {[%clk 0:00:04]} 36. Qg5+ {[%clk 0:01:11]}  Qxg5 {[%clk 0:00:03]} 37. Bxg5 {[%clk 0:01:11]}  Nh3+ {[%clk 0:00:04]} 38. Kg2 {[%clk 0:01:12]}  Nxg5 {[%clk 0:00:05]} 39. h4 {[%clk 0:01:13]}  Rxc3 {[%clk 0:00:05]} 40. bxc3 {[%clk 0:01:12]}  Nxe4 {[%clk 0:00:06]} 41. c4 {[%clk 0:01:11]}  Nd2 {[%clk 0:00:05]} 42. Kf2 {[%clk 0:01:10]}  Nxc4 {[%clk 0:00:06]} 43. Ke2 {[%clk 0:01:10]}  Nb2 {[%clk 0:00:06]} 44. Ke3 {[%clk 0:01:08]}  Nxa4 {[%clk 0:00:06]} 45. Ke4 {[%clk 0:01:08]}  Kf7 {[%clk 0:00:06]} 46. g4 {[%clk 0:01:08]}  b5 {[%clk 0:00:06]} 47. h5 {[%clk 0:01:08]}  Nb6 {[%clk 0:00:07]} 48. g5 {[%clk 0:01:08]}  Nd7 {[%clk 0:00:07]} 49. Kf4 {[%clk 0:01:07]}  c4 {[%clk 0:00:05]} 50. Ke4 {[%clk 0:01:07]}  Kg7 {[%clk 0:00:04]} 51. Kd4 {[%clk 0:01:07]}  e5+ {[%clk 0:00:03]} 52. Kd5 {[%clk 0:01:07]}  Kf7 {[%clk 0:00:02]} 53. Kd6 {[%clk 0:01:06]}  Nf8 {[%clk 0:00:02]} 54. Kxe5 {[%clk 0:01:06]}  Ke7 {[%clk 0:00:02]} 55. g6 {[%clk 0:01:06]}  b4 {[%clk 0:00:01]} 56. Kf5 {[%clk 0:01:00]}  b3 {[%clk 0:00:01]} 57. cxb3 {[%clk 0:00:58]}  cxb3 {[%clk 0:00:01]} 58. Kg5 {[%clk 0:00:59]}  b2 {[%clk 0:00:01]} 59. h6 {[%clk 0:00:59]}  b1=Q {[%clk 0:00:01]} 60. h7 {[%clk 0:01:00]}  Qxg6+ {[%clk 0:00:02]} 61. Kf4 {[%clk 0:01:00]}  Qxh7 {[%clk 0:00:03]} 62. Ke5 {[%clk 0:01:00]}  Qf7 {[%clk 0:00:04]} 0-1


[Site "https://www.chess.com"]

[Event "Titled Tuesday Blitz July 20 2021"]
[White "Garcia, Gabriel Gonzaga"]
[Black "Araujo Filho, Luiz Antonio Coel"]
[WhiteFideId "2138956"]
[BlackFideId "2130661"]
[WhiteElo "2240"]
[BlackElo "2248"]
[Result "1/2-1/2"]
[Round "10"]
[TimeControl "180+1"]
[Date "2021.07.21"]
[WhiteClock "0:00:11"]
[BlackClock "0:00:02"]

1. e4 {[%clk 0:03:00]}  c6 {[%clk 0:03:00]} 2. Nf3 {[%clk 0:02:59]}  d5 {[%clk 0:03:00]} 3. Nc3 {[%clk 0:03:00]}  dxe4 {[%clk 0:03:00]} 4. Nxe4 {[%clk 0:03:01]}  Nf6 {[%clk 0:03:01]} 5. Ng3 {[%clk 0:03:01]}  e6 {[%clk 0:03:01]} 6. d4 {[%clk 0:03:01]}  Bd6 {[%clk 0:03:01]} 7. Bd3 {[%clk 0:03:01]}  Nbd7 {[%clk 0:03:01]} 8. Bg5 {[%clk 0:02:57]}  Qb6 {[%clk 0:03:00]} 9. O-O {[%clk 0:02:56]}  Qxb2 {[%clk 0:02:58]} 10. Rb1 {[%clk 0:02:56]}  Qa3 {[%clk 0:02:58]} 11. Ne5 {[%clk 0:02:46]}  O-O {[%clk 0:02:57]} 12. Nxd7 {[%clk 0:02:46]}  Nxd7 {[%clk 0:02:55]} 13. Qh5 {[%clk 0:02:46]}  f5 {[%clk 0:02:40]} 14. Bc4 {[%clk 0:02:25]}  Nf6 {[%clk 0:02:09]} 15. Qh4 {[%clk 0:02:20]}  Nd5 {[%clk 0:02:06]} 16. Bb3 {[%clk 0:02:12]}  Be7 {[%clk 0:01:27]} 17. Bxd5 {[%clk 0:02:11]}  Bxg5 {[%clk 0:01:27]} 18. Bxe6+ {[%clk 0:02:12]}  Bxe6 {[%clk 0:01:25]} 19. Qxg5 {[%clk 0:02:13]}  b6 {[%clk 0:01:14]} 20. Rfe1 {[%clk 0:02:10]}  Qxa2 {[%clk 0:01:04]} 21. Ra1 {[%clk 0:01:56]}  Qc4 {[%clk 0:00:58]} 22. h4 {[%clk 0:01:47]}  a5 {[%clk 0:00:43]} 23. Nh5 {[%clk 0:01:35]}  Rf7 {[%clk 0:00:41]} 24. Nf4 {[%clk 0:01:35]}  Bd5 {[%clk 0:00:37]} 25. Rad1 {[%clk 0:01:18]}  Qxc2 {[%clk 0:00:33]} 26. h5 {[%clk 0:01:12]}  h6 {[%clk 0:00:27]} 27. Qg6 {[%clk 0:01:12]}  Rf6 {[%clk 0:00:15]} 28. Re8+ {[%clk 0:01:08]}  Rxe8 {[%clk 0:00:15]} 29. Qxe8+ {[%clk 0:01:09]}  Kh7 {[%clk 0:00:15]} 30. Re1 {[%clk 0:01:05]}  Bf7 {[%clk 0:00:12]} 31. Qd8 {[%clk 0:00:56]}  Qd2 {[%clk 0:00:09]} 32. Re3 {[%clk 0:00:49]}  Qd1+ {[%clk 0:00:07]} 33. Kh2 {[%clk 0:00:50]}  Qg4 {[%clk 0:00:08]} 34. Qc7 {[%clk 0:00:29]}  b5 {[%clk 0:00:03]} 35. Rg3 {[%clk 0:00:28]}  Qd1 {[%clk 0:00:02]} 36. Qxc6 {[%clk 0:00:17]}  a4 {[%clk 0:00:01]} 37. Qxb5 {[%clk 0:00:16]}  Qxd4 {[%clk 0:00:01]} 38. Ng6 {[%clk 0:00:12]}  Qc4 {[%clk 0:00:01]} 39. Qb8 {[%clk 0:00:10]}  Bxg6 {[%clk 0:00:01]} 40. hxg6+ {[%clk 0:00:11]}  Rxg6 {[%clk 0:00:01]} 41. Rxg6 {[%clk 0:00:05]}  Kxg6 {[%clk 0:00:02]} 42. Qe8+ {[%clk 0:00:06]}  Kg5 {[%clk 0:00:02]} 43. Qe7+ {[%clk 0:00:06]}  Kg6 {[%clk 0:00:02]} 44. Qe8+ {[%clk 0:00:06]}  Qf7 {[%clk 0:00:02]} 45. Qxa4 {[%clk 0:00:04]}  Qf6 {[%clk 0:00:03]} 46. g3 {[%clk 0:00:04]}  Qd6 {[%clk 0:00:03]} 47. Qh4 {[%clk 0:00:04]}  Kh7 {[%clk 0:00:02]} 48. Kg2 {[%clk 0:00:04]}  Qe6 {[%clk 0:00:02]} 49. Qh3 {[%clk 0:00:02]}  Qd6 {[%clk 0:00:02]} 50. Qxf5+ {[%clk 0:00:02]}  Kg8 {[%clk 0:00:03]} 51. Qc8+ {[%clk 0:00:01]}  Kh7 {[%clk 0:00:03]} 52. Qc2+ {[%clk 0:00:02]}  Kg8 {[%clk 0:00:02]} 53. f4 {[%clk 0:00:02]}  Kh8 {[%clk 0:00:01]} 54. Kf3 {[%clk 0:00:02]}  Kg8 {[%clk 0:00:02]} 55. Qc8+ {[%clk 0:00:02]}  Kh7 {[%clk 0:00:02]} 56. Qf5+ {[%clk 0:00:03]}  Kg8 {[%clk 0:00:02]} 57. Qe4 {[%clk 0:00:03]}  Kh8 {[%clk 0:00:02]} 58. f5 {[%clk 0:00:04]}  Kg8 {[%clk 0:00:02]} 59. g4 {[%clk 0:00:05]}  Kh7 {[%clk 0:00:02]} 60. Qe8 {[%clk 0:00:05]}  Qd5+ {[%clk 0:00:01]} 61. Kf4 {[%clk 0:00:06]}  Qd4+ {[%clk 0:00:02]} 62. Qe4 {[%clk 0:00:06]}  Qxe4+ {[%clk 0:00:02]} 63. Kxe4 {[%clk 0:00:07]}  h5 {[%clk 0:00:02]} 64. Ke5 {[%clk 0:00:08]}  hxg4 {[%clk 0:00:01]} 65. Kf4 {[%clk 0:00:08]}  Kg8 {[%clk 0:00:02]} 66. Kxg4 {[%clk 0:00:09]}  Kf8 {[%clk 0:00:02]} 67. Kg5 {[%clk 0:00:09]}  Kf7 {[%clk 0:00:02]} 68. Kh5 {[%clk 0:00:10]}  Kf6 {[%clk 0:00:02]} 69. Kg4 {[%clk 0:00:10]}  g6 {[%clk 0:00:02]} 70. fxg6 {[%clk 0:00:11]}  Kxg6 {[%clk 0:00:02]} 1/2-1/2


[Site "https://www.chess.com"]

[Event "Titled Tuesday Blitz July 20 2021"]
[White "GrafLermontov"]
[Black "Ouellet, Maili-Jade"]
[BlackFideId "2620472"]
[WhiteElo "2555"]
[BlackElo "1886"]
[Result "0-1"]
[Round "10"]
[TimeControl "180+1"]
[Date "2021.07.21"]
[WhiteClock "0:00:07"]
[BlackClock "0:00:07"]

1. d4 {[%clk 0:03:00]}  d5 {[%clk 0:03:00]} 2. c4 {[%clk 0:03:01]}  e6 {[%clk 0:03:00]} 3. Nc3 {[%clk 0:03:00]}  Nf6 {[%clk 0:03:00]} 4. cxd5 {[%clk 0:03:00]}  exd5 {[%clk 0:03:00]} 5. Bg5 {[%clk 0:03:01]}  Be7 {[%clk 0:03:01]} 6. Qc2 {[%clk 0:03:00]}  O-O {[%clk 0:03:01]} 7. e3 {[%clk 0:03:01]}  Nbd7 {[%clk 0:03:01]} 8. Bd3 {[%clk 0:03:02]}  c6 {[%clk 0:03:02]} 9. Nf3 {[%clk 0:03:02]}  Re8 {[%clk 0:03:02]} 10. h3 {[%clk 0:03:03]}  Nf8 {[%clk 0:03:02]} 11. O-O-O {[%clk 0:03:02]}  b5 {[%clk 0:03:00]} 12. Ne5 {[%clk 0:03:01]}  Bb7 {[%clk 0:02:56]} 13. Kb1 {[%clk 0:03:00]}  a5 {[%clk 0:02:56]} 14. g4 {[%clk 0:02:56]}  a4 {[%clk 0:02:56]} 15. Rc1 {[%clk 0:02:53]}  Qa5 {[%clk 0:02:54]} 16. f4 {[%clk 0:02:48]}  b4 {[%clk 0:02:53]} 17. Ne2 {[%clk 0:02:17]}  b3 {[%clk 0:02:51]} 18. axb3 {[%clk 0:02:08]}  axb3 {[%clk 0:02:52]} 19. Qxb3 {[%clk 0:02:07]}  Reb8 {[%clk 0:02:43]} 20. Nc3 {[%clk 0:02:02]}  Ba6 {[%clk 0:02:34]} 21. Qa2 {[%clk 0:01:34]}  Bxd3+ {[%clk 0:02:20]} 22. Nxd3 {[%clk 0:01:35]}  Qb6 {[%clk 0:02:14]} 23. Na4 {[%clk 0:01:34]}  Qb5 {[%clk 0:02:12]} 24. Ndc5 {[%clk 0:01:18]}  Bxc5 {[%clk 0:02:11]} 25. Rxc5 {[%clk 0:01:16]}  Qxa4 {[%clk 0:02:07]} 26. Qxa4 {[%clk 0:01:16]}  Rxa4 {[%clk 0:02:08]} 27. Bxf6 {[%clk 0:01:17]}  gxf6 {[%clk 0:02:06]} 28. Rxc6 {[%clk 0:01:18]}  Rab4 {[%clk 0:02:05]} 29. Rh2 {[%clk 0:01:17]}  Rb3 {[%clk 0:01:54]} 30. Re2 {[%clk 0:01:16]}  Re8 {[%clk 0:01:50]} 31. Rc3 {[%clk 0:01:12]}  Rxc3 {[%clk 0:01:45]} 32. bxc3 {[%clk 0:01:13]}  Nd7 {[%clk 0:01:45]} 33. Kc2 {[%clk 0:01:12]}  Nb6 {[%clk 0:01:44]} 34. Kd3 {[%clk 0:01:10]}  Kg7 {[%clk 0:01:29]} 35. e4 {[%clk 0:01:00]}  dxe4+ {[%clk 0:01:26]} 36. Rxe4 {[%clk 0:01:00]}  Rxe4 {[%clk 0:01:24]} 37. Kxe4 {[%clk 0:01:01]}  Kf8 {[%clk 0:01:22]} 38. Kf5 {[%clk 0:00:45]}  Ke7 {[%clk 0:01:17]} 39. g5 {[%clk 0:00:38]}  Nd5 {[%clk 0:01:16]} 40. gxf6+ {[%clk 0:00:36]}  Nxf6 {[%clk 0:01:15]} 41. c4 {[%clk 0:00:36]}  h6 {[%clk 0:01:06]} 42. h4 {[%clk 0:00:36]}  Nd7 {[%clk 0:01:01]} 43. c5 {[%clk 0:00:35]}  Nf6 {[%clk 0:00:59]} 44. Ke5 {[%clk 0:00:34]}  Nd7+ {[%clk 0:00:27]} 45. Kd5 {[%clk 0:00:34]}  Nb8 {[%clk 0:00:25]} 46. c6 {[%clk 0:00:21]}  Na6 {[%clk 0:00:23]} 47. Ke5 {[%clk 0:00:21]}  Nc7 {[%clk 0:00:19]} 48. d5 {[%clk 0:00:21]}  Nb5 {[%clk 0:00:19]} 49. Kf5 {[%clk 0:00:15]}  Nd6+ {[%clk 0:00:13]} 50. Ke5 {[%clk 0:00:13]}  f6+ {[%clk 0:00:12]} 51. Kd4 {[%clk 0:00:13]}  Nf5+ {[%clk 0:00:12]} 52. Kc5 {[%clk 0:00:14]}  Nd6 {[%clk 0:00:12]} 53. Kb6 {[%clk 0:00:13]}  Kd8 {[%clk 0:00:09]} 54. c7+ {[%clk 0:00:10]}  Kd7 {[%clk 0:00:09]} 55. f5 {[%clk 0:00:07]}  Nxf5 {[%clk 0:00:07]} 56. Kb7 {[%clk 0:00:07]}  Nd6+ {[%clk 0:00:07]} 57. Kb8 {[%clk 0:00:07]}  f5 {[%clk 0:00:07]} 0-1


[Site "https://www.chess.com"]

[Event "Titled Tuesday Blitz July 20 2021"]
[White "Gurevich, Dmitry"]
[Black "Tanenbaum, Zachary"]
[WhiteFideId "2000407"]
[BlackFideId "2060850"]
[WhiteElo "2506"]
[BlackElo "2165"]
[Result "1-0"]
[Round "10"]
[TimeControl "180+1"]
[Date "2021.07.21"]
[WhiteClock "0:00:07"]
[BlackClock "0:00:15"]

1. d4 {[%clk 0:03:00]}  d5 {[%clk 0:03:00]} 2. c4 {[%clk 0:03:00]}  dxc4 {[%clk 0:03:01]} 3. Nf3 {[%clk 0:02:56]}  a6 {[%clk 0:03:00]} 4. e3 {[%clk 0:02:42]}  Nf6 {[%clk 0:03:00]} 5. Bxc4 {[%clk 0:02:40]}  e6 {[%clk 0:03:01]} 6. O-O {[%clk 0:02:39]}  c5 {[%clk 0:03:01]} 7. dxc5 {[%clk 0:02:37]}  Bxc5 {[%clk 0:03:02]} 8. Qxd8+ {[%clk 0:02:34]}  Kxd8 {[%clk 0:03:03]} 9. b3 {[%clk 0:02:33]}  Nbd7 {[%clk 0:02:55]} 10. Bb2 {[%clk 0:02:32]}  b6 {[%clk 0:02:52]} 11. Rd1 {[%clk 0:02:23]}  Ke7 {[%clk 0:02:48]} 12. a3 {[%clk 0:02:22]}  a5 {[%clk 0:02:46]} 13. Nc3 {[%clk 0:02:18]}  Bb7 {[%clk 0:02:38]} 14. Na4 {[%clk 0:02:18]}  Bd6 {[%clk 0:02:36]} 15. Nd4 {[%clk 0:02:14]}  Rac8 {[%clk 0:01:56]} 16. Nb5 {[%clk 0:02:06]}  Bb8 {[%clk 0:01:55]} 17. Bd4 {[%clk 0:02:03]}  Bd5 {[%clk 0:01:13]} 18. Bxd5 {[%clk 0:01:43]}  Nxd5 {[%clk 0:01:13]} 19. Bxg7 {[%clk 0:01:42]}  Rhg8 {[%clk 0:01:12]} 20. Bd4 {[%clk 0:01:43]}  f5 {[%clk 0:01:09]} 21. g3 {[%clk 0:01:39]}  h5 {[%clk 0:01:08]} 22. Nbc3 {[%clk 0:01:30]}  Nxc3 {[%clk 0:01:01]} 23. Nxc3 {[%clk 0:01:29]}  e5 {[%clk 0:01:00]} 24. Nd5+ {[%clk 0:01:29]}  Ke6 {[%clk 0:00:54]} 25. Bxb6 {[%clk 0:01:28]}  Bd6 {[%clk 0:00:19]} 26. e4 {[%clk 0:01:02]}  f4 {[%clk 0:00:14]} 27. Bxa5 {[%clk 0:00:58]}  Rc2 {[%clk 0:00:13]} 28. Rac1 {[%clk 0:00:51]}  Rgc8 {[%clk 0:00:12]} 29. Rxc2 {[%clk 0:00:49]}  Rxc2 {[%clk 0:00:13]} 30. Bb4 {[%clk 0:00:42]}  Bb8 {[%clk 0:00:05]} 31. gxf4 {[%clk 0:00:40]}  exf4 {[%clk 0:00:05]} 32. Nc3 {[%clk 0:00:36]}  Ne5 {[%clk 0:00:04]} 33. Nb5 {[%clk 0:00:34]}  Nf3+ {[%clk 0:00:04]} 34. Kg2 {[%clk 0:00:33]}  Nh4+ {[%clk 0:00:03]} 35. Kh3 {[%clk 0:00:33]}  Ng6 {[%clk 0:00:02]} 36. Nd4+ {[%clk 0:00:29]}  Kf7 {[%clk 0:00:02]} 37. Nxc2 {[%clk 0:00:29]}  f3 {[%clk 0:00:02]} 38. Bd6 {[%clk 0:00:25]}  Ba7 {[%clk 0:00:02]} 39. Nd4 {[%clk 0:00:22]}  h4 {[%clk 0:00:01]} 40. Nxf3 {[%clk 0:00:21]}  Bxf2 {[%clk 0:00:01]} 41. Rf1 {[%clk 0:00:19]}  Be3 {[%clk 0:00:01]} 42. Nxh4+ {[%clk 0:00:18]}  Ke6 {[%clk 0:00:01]} 43. Nxg6 {[%clk 0:00:18]}  Kxd6 {[%clk 0:00:02]} 44. Kg4 {[%clk 0:00:17]}  Ke6 {[%clk 0:00:02]} 45. Nf4+ {[%clk 0:00:16]}  Ke5 {[%clk 0:00:02]} 46. Ng6+ {[%clk 0:00:13]}  Kxe4 {[%clk 0:00:02]} 47. Re1 {[%clk 0:00:13]}  Kd3 {[%clk 0:00:02]} 48. Rxe3+ {[%clk 0:00:13]}  Kxe3 {[%clk 0:00:03]} 49. h4 {[%clk 0:00:13]}  Kd4 {[%clk 0:00:04]} 50. h5 {[%clk 0:00:14]}  Kd5 {[%clk 0:00:05]} 51. h6 {[%clk 0:00:14]}  Kd6 {[%clk 0:00:06]} 52. h7 {[%clk 0:00:15]}  Ke6 {[%clk 0:00:07]} 53. h8=Q {[%clk 0:00:15]}  Kf7 {[%clk 0:00:08]} 54. Ne5+ {[%clk 0:00:13]}  Ke6 {[%clk 0:00:09]} 55. Kf4 {[%clk 0:00:13]}  Kd5 {[%clk 0:00:09]} 56. Kf5 {[%clk 0:00:13]}  Kd4 {[%clk 0:00:10]} 57. Nd3+ {[%clk 0:00:12]}  Ke3 {[%clk 0:00:11]} 58. Qe8+ {[%clk 0:00:11]}  Kd2 {[%clk 0:00:12]} 59. Nc5 {[%clk 0:00:10]}  Kc3 {[%clk 0:00:13]} 60. Qe3+ {[%clk 0:00:09]}  Kb2 {[%clk 0:00:13]} 61. b4 {[%clk 0:00:08]}  Kc2 {[%clk 0:00:13]} 62. Qd3+ {[%clk 0:00:08]}  Kb2 {[%clk 0:00:14]} 63. b5 {[%clk 0:00:08]}  Kc1 {[%clk 0:00:15]} 64. Qe2 {[%clk 0:00:07]}  Kb1 {[%clk 0:00:15]} 65. Nd3 {[%clk 0:00:07]}  Ka1 {[%clk 0:00:15]} 66. Qb2# {[%clk 0:00:07]} 1-0


[Site "https://www.chess.com"]

[Event "Titled Tuesday Blitz July 20 2021"]
[White "Harshavardhan G B"]
[Black "Pein, Jonathan"]
[WhiteFideId "25059009"]
[BlackFideId "417092"]
[WhiteElo "1825"]
[BlackElo "2167"]
[Result "1-0"]
[Round "10"]
[TimeControl "180+1"]
[Date "2021.07.21"]
[WhiteClock "0:01:07"]
[BlackClock "0:00:04"]

1. d4 {[%clk 0:03:00]}  Nf6 {[%clk 0:02:59]} 2. c4 {[%clk 0:03:01]}  g6 {[%clk 0:02:58]} 3. Nc3 {[%clk 0:03:00]}  Bg7 {[%clk 0:02:59]} 4. e4 {[%clk 0:02:59]}  O-O {[%clk 0:02:59]} 5. Nf3 {[%clk 0:02:56]}  d6 {[%clk 0:02:59]} 6. Be2 {[%clk 0:02:56]}  e5 {[%clk 0:02:55]} 7. d5 {[%clk 0:02:56]}  h6 {[%clk 0:02:46]} 8. Nd2 {[%clk 0:02:51]}  a5 {[%clk 0:02:45]} 9. g4 {[%clk 0:02:46]}  Na6 {[%clk 0:02:43]} 10. h4 {[%clk 0:02:45]}  Nd7 {[%clk 0:02:40]} 11. Nf1 {[%clk 0:02:44]}  Ndc5 {[%clk 0:02:40]} 12. Ng3 {[%clk 0:02:42]}  a4 {[%clk 0:02:35]} 13. Be3 {[%clk 0:02:40]}  Bd7 {[%clk 0:02:31]} 14. Qd2 {[%clk 0:02:36]}  Kh7 {[%clk 0:02:16]} 15. f3 {[%clk 0:02:27]}  Nb4 {[%clk 0:02:02]} 16. Kf2 {[%clk 0:02:24]}  f5 {[%clk 0:02:00]} 17. gxf5 {[%clk 0:02:22]}  gxf5 {[%clk 0:02:01]} 18. exf5 {[%clk 0:02:22]}  Rxf5 {[%clk 0:01:31]} 19. Rag1 {[%clk 0:02:09]}  Rf4 {[%clk 0:01:28]} 20. Nh5 {[%clk 0:01:59]}  Bf6 {[%clk 0:01:12]} 21. a3 {[%clk 0:01:40]}  Bxh4+ {[%clk 0:01:09]} 22. Kf1 {[%clk 0:01:39]}  Nb3 {[%clk 0:01:01]} 23. Qd1 {[%clk 0:01:36]}  Rf5 {[%clk 0:00:43]} 24. axb4 {[%clk 0:01:32]}  Rxh5 {[%clk 0:00:42]} 25. Bd3+ {[%clk 0:01:31]}  Kh8 {[%clk 0:00:40]} 26. Bg6 {[%clk 0:01:30]}  Rf5 {[%clk 0:00:15]} 27. Ne4 {[%clk 0:01:20]}  Rf4 {[%clk 0:00:10]} 28. Bxf4 {[%clk 0:01:16]}  exf4 {[%clk 0:00:11]} 29. Qd3 {[%clk 0:01:15]}  a3 {[%clk 0:00:08]} 30. Qc3+ {[%clk 0:01:14]}  Bf6 {[%clk 0:00:02]} 31. Nxf6 {[%clk 0:01:12]}  Nd2+ {[%clk 0:00:03]} 32. Ke2 {[%clk 0:01:09]}  Qxf6 {[%clk 0:00:04]} 33. Qxf6+ {[%clk 0:01:07]} 1-0


[Site "https://www.chess.com"]

[Event "Titled Tuesday Blitz July 20 2021"]
[White "Ibrahimli, Murad"]
[Black "Garcia Ramos, Daniel"]
[WhiteFideId "13410229"]
[BlackFideId "32010311"]
[WhiteElo "2109"]
[BlackElo "2321"]
[Result "0-1"]
[Round "10"]
[TimeControl "180+1"]
[Date "2021.07.20"]
[WhiteClock "0:00:05"]
[BlackClock "0:00:10"]

1. Nf3 {[%clk 0:03:00]}  Nf6 {[%clk 0:02:57]} 2. c4 {[%clk 0:03:00]}  c6 {[%clk 0:02:57]} 3. Nc3 {[%clk 0:02:59]}  d5 {[%clk 0:02:57]} 4. d4 {[%clk 0:02:58]}  e6 {[%clk 0:02:57]} 5. g3 {[%clk 0:02:58]}  dxc4 {[%clk 0:02:55]} 6. Bg2 {[%clk 0:02:59]}  b5 {[%clk 0:02:55]} 7. O-O {[%clk 0:02:58]}  Bb7 {[%clk 0:02:53]} 8. e4 {[%clk 0:02:56]}  Nbd7 {[%clk 0:02:50]} 9. Bf4 {[%clk 0:02:55]}  Be7 {[%clk 0:02:49]} 10. d5 {[%clk 0:02:19]}  cxd5 {[%clk 0:02:38]} 11. Nxb5 {[%clk 0:02:19]}  O-O {[%clk 0:02:29]} 12. exd5 {[%clk 0:01:51]}  Bxd5 {[%clk 0:02:21]} 13. Nc7 {[%clk 0:01:43]}  Rc8 {[%clk 0:02:21]} 14. Nxd5 {[%clk 0:01:43]}  Nxd5 {[%clk 0:02:21]} 15. Bd2 {[%clk 0:01:44]}  Bf6 {[%clk 0:02:20]} 16. Rb1 {[%clk 0:01:40]}  Nc5 {[%clk 0:02:15]} 17. Qe2 {[%clk 0:01:37]}  Na4 {[%clk 0:02:04]} 18. Rbe1 {[%clk 0:00:57]}  Nxb2 {[%clk 0:01:59]} 19. h4 {[%clk 0:00:57]}  h6 {[%clk 0:01:54]} 20. Bh3 {[%clk 0:00:54]}  Nd3 {[%clk 0:01:41]} 21. Rd1 {[%clk 0:00:53]}  Qd6 {[%clk 0:01:35]} 22. Nh2 {[%clk 0:00:51]}  Bd4 {[%clk 0:01:32]} 23. Kh1 {[%clk 0:00:52]}  Nf6 {[%clk 0:01:23]} 24. f4 {[%clk 0:00:31]}  Rfd8 {[%clk 0:01:18]} 25. Be1 {[%clk 0:00:23]}  Nxe1 {[%clk 0:00:53]} 26. Rfxe1 {[%clk 0:00:23]}  c3 {[%clk 0:00:51]} 27. Nf3 {[%clk 0:00:23]}  Qc5 {[%clk 0:00:49]} 28. Qc2 {[%clk 0:00:22]}  Bf2 {[%clk 0:00:45]} 29. Rxd8+ {[%clk 0:00:18]}  Rxd8 {[%clk 0:00:46]} 30. Re5 {[%clk 0:00:17]}  Qb6 {[%clk 0:00:43]} 31. Kg2 {[%clk 0:00:15]}  Bd4 {[%clk 0:00:37]} 32. Re2 {[%clk 0:00:14]}  Nd5 {[%clk 0:00:35]} 33. Kh2 {[%clk 0:00:14]}  Ne3 {[%clk 0:00:34]} 34. Qc1 {[%clk 0:00:11]}  c2 {[%clk 0:00:32]} 35. Nxd4 {[%clk 0:00:03]}  Qxd4 {[%clk 0:00:21]} 36. Bg2 {[%clk 0:00:02]}  Qd1 {[%clk 0:00:17]} 37. Qxe3 {[%clk 0:00:03]}  c1=Q {[%clk 0:00:15]} 38. Qf3 {[%clk 0:00:04]}  Qg1+ {[%clk 0:00:14]} 39. Kh3 {[%clk 0:00:04]}  Qcc5 {[%clk 0:00:13]} 40. Re5 {[%clk 0:00:03]}  Qc2 {[%clk 0:00:11]} 41. Re2 {[%clk 0:00:02]}  Qd3 {[%clk 0:00:11]} 42. Qg4 {[%clk 0:00:01]}  h5 {[%clk 0:00:08]} 43. Qxh5 {[%clk 0:00:01]}  Qf5+ {[%clk 0:00:06]} 44. Qxf5 {[%clk 0:00:01]}  exf5 {[%clk 0:00:07]} 45. h5 {[%clk 0:00:02]}  Qd4 {[%clk 0:00:07]} 46. h6 {[%clk 0:00:02]}  gxh6 {[%clk 0:00:07]} 47. Bf3 {[%clk 0:00:03]}  Kg7 {[%clk 0:00:08]} 48. Bh5 {[%clk 0:00:04]}  Qd6 {[%clk 0:00:08]} 49. Kg2 {[%clk 0:00:03]}  Qf6 {[%clk 0:00:09]} 50. Bf3 {[%clk 0:00:04]}  Rd3 {[%clk 0:00:09]} 51. Rc2 {[%clk 0:00:04]}  Rc3 {[%clk 0:00:09]} 52. Rd2 {[%clk 0:00:04]}  Qe6 {[%clk 0:00:09]} 53. Bh5 {[%clk 0:00:04]}  Qe3 {[%clk 0:00:09]} 54. Rd7 {[%clk 0:00:03]}  Qxg3+ {[%clk 0:00:09]} 55. Kf1 {[%clk 0:00:03]}  Rc1+ {[%clk 0:00:09]} 56. Ke2 {[%clk 0:00:04]}  Re1+ {[%clk 0:00:09]} 57. Kd2 {[%clk 0:00:04]}  Qe3+ {[%clk 0:00:10]} 58. Kc2 {[%clk 0:00:05]}  Rc1+ {[%clk 0:00:10]} 0-1


[Site "https://www.chess.com"]